[Event "Titled Tuesday Blitz April 19 Early 2022"]
[White "Tanenbaum, Zachary"]
[Black "Ocelak, Jakub"]
[WhiteFideId "2060850"]
[BlackFideId "23707933"]
[WhiteElo "2168"]
[BlackElo "2048"]
[Result "1-0"]
[Round "01"]
[TimeControl "180+1"]
[Date "2022.04.19"]
[WhiteClock "0:00:14"]
[BlackClock "0:00:01"]

1. e4 {[%clk 0:01:49]}  c5 {[%clk 0:02:53]} 2. Nf3 {[%clk 0:01:49]}  e6 {[%clk 0:02:52]} 3. d4 {[%clk 0:01:49]}  cxd4 {[%clk 0:02:53]} 4. Nxd4 {[%clk 0:01:50]}  Nf6 {[%clk 0:02:53]} 5. Nc3 {[%clk 0:01:50]}  Nc6 {[%clk 0:02:53]} 6. Ndb5 {[%clk 0:01:50]}  d6 {[%clk 0:02:52]} 7. Bf4 {[%clk 0:01:50]}  e5 {[%clk 0:02:53]} 8. Bg5 {[%clk 0:01:50]}  a6 {[%clk 0:02:53]} 9. Na3 {[%clk 0:01:51]}  b5 {[%clk 0:02:53]} 10. Bxf6 {[%clk 0:01:51]}  gxf6 {[%clk 0:02:53]} 11. Nd5 {[%clk 0:01:52]}  Bg7 {[%clk 0:02:53]} 12. Be2 {[%clk 0:01:42]}  f5 {[%clk 0:02:43]} 13. exf5 {[%clk 0:01:36]}  Bxf5 {[%clk 0:02:28]} 14. O-O {[%clk 0:01:35]}  O-O {[%clk 0:02:19]} 15. c3 {[%clk 0:01:19]}  Rc8 {[%clk 0:02:00]} 16. Nc2 {[%clk 0:01:16]}  Be6 {[%clk 0:01:51]} 17. a4 {[%clk 0:01:10]}  bxa4 {[%clk 0:01:44]} 18. Nce3 {[%clk 0:01:00]}  Rb8 {[%clk 0:01:41]} 19. Qxa4 {[%clk 0:00:59]}  Ne7 {[%clk 0:01:29]} 20. Nxe7+ {[%clk 0:00:51]}  Qxe7 {[%clk 0:01:30]} 21. Qa3 {[%clk 0:00:43]}  Rb3 {[%clk 0:01:17]} 22. Qxa6 {[%clk 0:00:42]}  Rxb2 {[%clk 0:01:15]} 23. Rad1 {[%clk 0:00:37]}  Rc8 {[%clk 0:00:56]} 24. Bc4 {[%clk 0:00:27]}  Bf8 {[%clk 0:00:45]} 25. Bxe6 {[%clk 0:00:26]}  Qxe6 {[%clk 0:00:46]} 26. Nd5 {[%clk 0:00:26]}  Rc5 {[%clk 0:00:38]} 27. c4 {[%clk 0:00:26]}  Rc2 {[%clk 0:00:35]} 28. Ne3 {[%clk 0:00:26]}  Re2 {[%clk 0:00:31]} 29. g3 {[%clk 0:00:26]}  Kg7 {[%clk 0:00:25]} 30. Qa1 {[%clk 0:00:24]}  Qg6 {[%clk 0:00:15]} 31. Qa8 {[%clk 0:00:22]}  Be7 {[%clk 0:00:14]} 32. Qf3 {[%clk 0:00:22]}  Ra2 {[%clk 0:00:11]} 33. Nf5+ {[%clk 0:00:22]}  Kf8 {[%clk 0:00:11]} 34. Ne3 {[%clk 0:00:20]}  Kg7 {[%clk 0:00:11]} 35. Rb1 {[%clk 0:00:19]}  Rc8 {[%clk 0:00:03]} 36. Rb7 {[%clk 0:00:19]}  Bf6 {[%clk 0:00:03]} 37. Rd1 {[%clk 0:00:19]}  Rb2 {[%clk 0:00:01]} 38. Rxb2 {[%clk 0:00:13]}  e4 {[%clk 0:00:02]} 39. Qe2 {[%clk 0:00:13]}  Bxb2 {[%clk 0:00:01]} 40. Qxb2+ {[%clk 0:00:14]}  Qf6 {[%clk 0:00:01]} 41. Nf5+ {[%clk 0:00:14]}  Kg6 {[%clk 0:00:01]} 42. Rxd6 {[%clk 0:00:14]} 1-0


[Site "https://www.chess.com"]

[Event "Titled Tuesday Blitz April 19 Early 2022"]
[White "Tasev, Dejan"]
[Black "Rudykh, Stepan"]
[WhiteFideId "936618"]
[BlackFideId "4180321"]
[WhiteElo "2253"]
[BlackElo "2100"]
[Result "1-0"]
[Round "01"]
[TimeControl "180+1"]
[Date "2022.04.19"]
[WhiteClock "0:01:52"]
[BlackClock "0:01:44"]

1. e4 {[%clk 0:02:59]}  e6 {[%clk 0:02:59]} 2. d4 {[%clk 0:02:59]}  d5 {[%clk 0:02:59]} 3. Nc3 {[%clk 0:03:00]}  Bb4 {[%clk 0:02:59]} 4. e5 {[%clk 0:02:59]}  c5 {[%clk 0:02:59]} 5. a3 {[%clk 0:02:58]}  Bxc3+ {[%clk 0:03:00]} 6. bxc3 {[%clk 0:02:59]}  Ne7 {[%clk 0:03:01]} 7. Nf3 {[%clk 0:02:59]}  Qa5 {[%clk 0:03:00]} 8. Bd2 {[%clk 0:02:59]}  Qa4 {[%clk 0:03:00]} 9. Bd3 {[%clk 0:02:55]}  Nbc6 {[%clk 0:02:59]} 10. dxc5 {[%clk 0:02:53]}  Ng6 {[%clk 0:02:41]} 11. Qe2 {[%clk 0:02:46]}  Nf4 {[%clk 0:02:40]} 12. Bxf4 {[%clk 0:02:43]}  Qxf4 {[%clk 0:02:41]} 13. O-O {[%clk 0:02:44]}  O-O {[%clk 0:02:38]} 14. Rfe1 {[%clk 0:02:40]}  h6 {[%clk 0:02:29]} 15. Rab1 {[%clk 0:02:30]}  Qa4 {[%clk 0:02:27]} 16. Rb3 {[%clk 0:02:24]}  Qa5 {[%clk 0:02:27]} 17. Qe3 {[%clk 0:02:19]}  Nb8 {[%clk 0:02:21]} 18. Rb4 {[%clk 0:02:14]}  Nd7 {[%clk 0:02:16]} 19. Rg4 {[%clk 0:02:14]}  Kh8 {[%clk 0:02:14]} 20. Rh4 {[%clk 0:02:10]}  Qxc5 {[%clk 0:01:58]} 21. Rxh6+ {[%clk 0:02:07]}  Kg8 {[%clk 0:01:57]} 22. Qg5 {[%clk 0:01:58]}  f6 {[%clk 0:01:49]} 23. Qh5 {[%clk 0:01:54]}  gxh6 {[%clk 0:01:44]} 24. Qg6+ {[%clk 0:01:52]} 1-0


[Site "https://www.chess.com"]

[Event "Titled Tuesday Blitz April 19 Early 2022"]
[White "Thomas, Anysia"]
[Black "Iskusnyh, Sergei"]
[WhiteFideId "670472"]
[BlackFideId "4120027"]
[WhiteElo "2002"]
[BlackElo "2492"]
[Result "0-1"]
[Round "01"]
[TimeControl "180+1"]
[Date "2022.04.19"]
[WhiteClock "0:00:50"]
[BlackClock "0:01:35"]

1. d4 {[%clk 0:02:57]}  d5 {[%clk 0:02:58]} 2. c4 {[%clk 0:02:54]}  c6 {[%clk 0:02:58]} 3. Nf3 {[%clk 0:02:54]}  Nf6 {[%clk 0:02:57]} 4. e3 {[%clk 0:02:55]}  a6 {[%clk 0:02:55]} 5. Qb3 {[%clk 0:02:52]}  Qc7 {[%clk 0:02:29]} 6. Nc3 {[%clk 0:02:45]}  e6 {[%clk 0:02:25]} 7. Bd2 {[%clk 0:02:44]}  Nbd7 {[%clk 0:02:24]} 8. Rc1 {[%clk 0:02:44]}  Bd6 {[%clk 0:02:22]} 9. Bd3 {[%clk 0:02:38]}  O-O {[%clk 0:02:20]} 10. e4 {[%clk 0:02:38]}  dxe4 {[%clk 0:02:18]} 11. Nxe4 {[%clk 0:02:39]}  Nxe4 {[%clk 0:02:17]} 12. Bxe4 {[%clk 0:02:40]}  c5 {[%clk 0:02:10]} 13. O-O {[%clk 0:02:36]}  cxd4 {[%clk 0:02:09]} 14. Qd3 {[%clk 0:02:18]}  f5 {[%clk 0:02:05]} 15. Nxd4 {[%clk 0:01:31]}  Nc5 {[%clk 0:01:57]} 16. Qh3 {[%clk 0:01:17]}  Nxe4 {[%clk 0:01:51]} 17. Be3 {[%clk 0:01:06]}  e5 {[%clk 0:01:43]} 18. Nf3 {[%clk 0:00:58]}  f4 {[%clk 0:01:41]} 19. Qh4 {[%clk 0:00:50]}  Be7 {[%clk 0:01:35]} 0-1


[Site "https://www.chess.com"]

[Event "Titled Tuesday Blitz April 19 Early 2022"]
[White "Todorovic, Bojan"]
[Black "Wagner, Dennis"]
[WhiteFideId "917087"]
[BlackFideId "24650684"]
[WhiteElo "2266"]
[BlackElo "2355"]
[Result "0-1"]
[Round "01"]
[TimeControl "180+1"]
[Date "2022.04.19"]
[WhiteClock "0:00:03"]
[BlackClock "0:00:26"]

1. d4 {[%clk 0:02:57]}  Nf6 {[%clk 0:02:58]} 2. c4 {[%clk 0:02:55]}  e6 {[%clk 0:02:58]} 3. Nf3 {[%clk 0:02:53]}  d5 {[%clk 0:02:57]} 4. Nc3 {[%clk 0:02:49]}  c5 {[%clk 0:02:57]} 5. cxd5 {[%clk 0:02:47]}  cxd4 {[%clk 0:02:57]} 6. Qa4+ {[%clk 0:02:44]}  Bd7 {[%clk 0:02:56]} 7. Qxd4 {[%clk 0:02:43]}  exd5 {[%clk 0:02:57]} 8. Bg5 {[%clk 0:02:26]}  Be7 {[%clk 0:02:43]} 9. e3 {[%clk 0:02:22]}  Nc6 {[%clk 0:02:41]} 10. Qd2 {[%clk 0:02:06]}  Be6 {[%clk 0:02:36]} 11. Be2 {[%clk 0:02:03]}  O-O {[%clk 0:02:36]} 12. O-O {[%clk 0:02:02]}  h6 {[%clk 0:02:36]} 13. Bh4 {[%clk 0:02:00]}  Qb6 {[%clk 0:02:24]} 14. Rfd1 {[%clk 0:01:49]}  Rfd8 {[%clk 0:02:24]} 15. Nd4 {[%clk 0:01:37]}  Nxd4 {[%clk 0:02:18]} 16. Qxd4 {[%clk 0:01:26]}  Rac8 {[%clk 0:01:58]} 17. Qd2 {[%clk 0:01:14]}  Ne4 {[%clk 0:01:26]} 18. Bxe7 {[%clk 0:01:13]}  Nxd2 {[%clk 0:01:26]} 19. Bxd8 {[%clk 0:01:13]}  Qxb2 {[%clk 0:01:27]} 20. Na4 {[%clk 0:01:05]}  Qc2 {[%clk 0:01:19]} 21. Ba5 {[%clk 0:00:59]}  Nc4 {[%clk 0:01:15]} 22. Bxc4 {[%clk 0:00:56]}  dxc4 {[%clk 0:01:16]} 23. Nc3 {[%clk 0:00:46]}  b6 {[%clk 0:01:09]} 24. Bb4 {[%clk 0:00:46]}  a5 {[%clk 0:00:59]} 25. Rac1 {[%clk 0:00:46]}  Qb2 {[%clk 0:00:41]} 26. Bd6 {[%clk 0:00:43]}  b5 {[%clk 0:00:32]} 27. Ne4 {[%clk 0:00:27]}  b4 {[%clk 0:00:30]} 28. Nc5 {[%clk 0:00:24]}  c3 {[%clk 0:00:29]} 29. Nxe6 {[%clk 0:00:17]}  fxe6 {[%clk 0:00:30]} 30. Be5 {[%clk 0:00:15]}  Qxa2 {[%clk 0:00:29]} 31. Rd7 {[%clk 0:00:14]}  c2 {[%clk 0:00:25]} 32. Rxg7+ {[%clk 0:00:13]}  Kf8 {[%clk 0:00:25]} 33. Rh7 {[%clk 0:00:07]}  Qb1 {[%clk 0:00:25]} 34. Rh8+ {[%clk 0:00:03]}  Kf7 {[%clk 0:00:26]} 0-1


[Site "https://www.chess.com"]

[Event "Titled Tuesday Blitz April 19 Early 2022"]
[White "Tologon tegin, Semetei"]
[Black "Krylov, Ivan"]
[WhiteFideId "13800574"]
[BlackFideId "24128066"]
[WhiteElo "2258"]
[BlackElo "2258"]
[Result "1-0"]
[Round "01"]
[TimeControl "180+1"]
[Date "2022.04.19"]
[WhiteClock "0:02:08"]
[BlackClock "0:02:20"]

1. e4 {[%clk 0:02:53]}  c6 {[%clk 0:02:59]} 2. Nc3 {[%clk 0:02:47]}  d5 {[%clk 0:03:00]} 3. Nf3 {[%clk 0:02:47]}  dxe4 {[%clk 0:02:59]} 4. Nxe4 {[%clk 0:02:46]}  Nd7 {[%clk 0:02:59]} 5. Bc4 {[%clk 0:02:46]}  Ndf6 {[%clk 0:02:59]} 6. Neg5 {[%clk 0:02:45]}  e6 {[%clk 0:02:59]} 7. Ne5 {[%clk 0:02:45]}  Nh6 {[%clk 0:02:58]} 8. O-O {[%clk 0:02:43]}  Bd6 {[%clk 0:02:58]} 9. Qe2 {[%clk 0:02:42]}  Qc7 {[%clk 0:02:54]} 10. d4 {[%clk 0:02:42]}  O-O {[%clk 0:02:52]} 11. c3 {[%clk 0:02:28]}  c5 {[%clk 0:02:51]} 12. Bb3 {[%clk 0:02:24]}  Bd7 {[%clk 0:02:45]} 13. Re1 {[%clk 0:02:15]}  Nd5 {[%clk 0:02:38]} 14. Qe4 {[%clk 0:02:11]}  Bc6 {[%clk 0:02:20]} 15. Qxh7# {[%clk 0:02:08]} 1-0


[Site "https://www.chess.com"]

[Event "Titled Tuesday Blitz April 19 Early 2022"]
[White "Trost, Edvin"]
[Black "Sailer, Mike"]
[WhiteFideId "1729519"]
[BlackFideId "2012901"]
[WhiteElo "2160"]
[BlackElo "2109"]
[Result "1-0"]
[Round "01"]
[TimeControl "180+1"]
[Date "2022.04.19"]
[WhiteClock "0:00:05"]
[BlackClock "0:00:02"]

1. d4 {[%clk 0:03:00]}  d5 {[%clk 0:02:59]} 2. c4 {[%clk 0:02:59]}  Bf5 {[%clk 0:02:58]} 3. cxd5 {[%clk 0:02:58]}  Bxb1 {[%clk 0:02:58]} 4. Qa4+ {[%clk 0:02:58]}  Qd7 {[%clk 0:02:59]} 5. Qxd7+ {[%clk 0:02:56]}  Nxd7 {[%clk 0:02:59]} 6. Rxb1 {[%clk 0:02:56]}  Ngf6 {[%clk 0:02:58]} 7. Nf3 {[%clk 0:02:52]}  Nb6 {[%clk 0:02:56]} 8. a3 {[%clk 0:02:47]}  Nbxd5 {[%clk 0:02:55]} 9. g3 {[%clk 0:02:45]}  e6 {[%clk 0:02:54]} 10. Bg2 {[%clk 0:02:44]}  Be7 {[%clk 0:02:45]} 11. O-O {[%clk 0:02:44]}  O-O {[%clk 0:02:41]} 12. Ne5 {[%clk 0:02:34]}  Rfd8 {[%clk 0:02:36]} 13. Rd1 {[%clk 0:02:28]}  Nd7 {[%clk 0:02:14]} 14. Nxd7 {[%clk 0:02:20]}  Rxd7 {[%clk 0:02:14]} 15. Bd2 {[%clk 0:02:17]}  Rad8 {[%clk 0:02:08]} 16. Rbc1 {[%clk 0:02:14]}  c6 {[%clk 0:02:03]} 17. e3 {[%clk 0:02:13]}  f5 {[%clk 0:01:53]} 18. Kf1 {[%clk 0:01:54]}  g5 {[%clk 0:01:50]} 19. Ke2 {[%clk 0:01:52]}  Kf7 {[%clk 0:01:49]} 20. Ba5 {[%clk 0:01:49]}  Rg8 {[%clk 0:01:39]} 21. Rd3 {[%clk 0:01:45]}  h5 {[%clk 0:01:35]} 22. Rb3 {[%clk 0:01:37]}  h4 {[%clk 0:01:18]} 23. Rd3 {[%clk 0:01:15]}  hxg3 {[%clk 0:01:15]} 24. hxg3 {[%clk 0:01:14]}  Rh8 {[%clk 0:01:15]} 25. Rh1 {[%clk 0:01:14]}  Rxh1 {[%clk 0:01:14]} 26. Bxh1 {[%clk 0:01:15]}  Rd8 {[%clk 0:01:10]} 27. Bd2 {[%clk 0:01:08]}  Rh8 {[%clk 0:01:07]} 28. Bg2 {[%clk 0:01:08]}  Rh2 {[%clk 0:01:05]} 29. Kf1 {[%clk 0:01:09]}  Ke8 {[%clk 0:00:57]} 30. Rb3 {[%clk 0:01:05]}  b6 {[%clk 0:00:57]} 31. Be1 {[%clk 0:00:59]}  Kd7 {[%clk 0:00:56]} 32. Rd3 {[%clk 0:00:57]}  g4 {[%clk 0:00:53]} 33. Rd1 {[%clk 0:00:43]}  Rh8 {[%clk 0:00:50]} 34. Bd2 {[%clk 0:00:41]}  Nf6 {[%clk 0:00:36]} 35. Rc1 {[%clk 0:00:40]}  c5 {[%clk 0:00:31]} 36. dxc5 {[%clk 0:00:39]}  bxc5 {[%clk 0:00:24]} 37. Bc3 {[%clk 0:00:39]}  Rb8 {[%clk 0:00:22]} 38. Rd1+ {[%clk 0:00:38]}  Ke8 {[%clk 0:00:19]} 39. Bc6+ {[%clk 0:00:37]}  Kf7 {[%clk 0:00:16]} 40. Ke2 {[%clk 0:00:36]}  Rb6 {[%clk 0:00:16]} 41. Bg2 {[%clk 0:00:35]}  Rd6 {[%clk 0:00:15]} 42. Rh1 {[%clk 0:00:33]}  Rd8 {[%clk 0:00:12]} 43. Rh6 {[%clk 0:00:26]}  Rd7 {[%clk 0:00:03]} 44. Rh8 {[%clk 0:00:25]}  Rd8 {[%clk 0:00:04]} 45. Rh1 {[%clk 0:00:24]}  Rd7 {[%clk 0:00:02]} 46. Be5 {[%clk 0:00:22]}  Rd8 {[%clk 0:00:02]} 47. Rc1 {[%clk 0:00:17]}  Rd7 {[%clk 0:00:03]} 48. Rc3 {[%clk 0:00:17]}  Rd8 {[%clk 0:00:03]} 49. Rb3 {[%clk 0:00:18]}  Rd7 {[%clk 0:00:04]} 50. Rb8 {[%clk 0:00:18]}  Nd5 {[%clk 0:00:02]} 51. e4 {[%clk 0:00:12]}  fxe4 {[%clk 0:00:03]} 52. Bxe4 {[%clk 0:00:13]}  Bf6 {[%clk 0:00:03]} 53. Bxf6 {[%clk 0:00:11]}  Kxf6 {[%clk 0:00:04]} 54. Rc8 {[%clk 0:00:10]}  Ke5 {[%clk 0:00:04]} 55. Bg2 {[%clk 0:00:09]}  Kd4 {[%clk 0:00:03]} 56. Rg8 {[%clk 0:00:09]}  Nf6 {[%clk 0:00:03]} 57. Rg6 {[%clk 0:00:09]}  Rf7 {[%clk 0:00:04]} 58. Rg5 {[%clk 0:00:09]}  e5 {[%clk 0:00:03]} 59. Rf5 {[%clk 0:00:07]}  Rf8 {[%clk 0:00:03]} 60. Bc6 {[%clk 0:00:06]}  c4 {[%clk 0:00:03]} 61. Ba4 {[%clk 0:00:04]}  Rf7 {[%clk 0:00:03]} 62. Bc2 {[%clk 0:00:03]}  Rf8 {[%clk 0:00:03]} 63. Bd1 {[%clk 0:00:03]}  Rf7 {[%clk 0:00:04]} 64. Bc2 {[%clk 0:00:03]}  Rf8 {[%clk 0:00:05]} 65. Ke1 {[%clk 0:00:03]}  Rf7 {[%clk 0:00:05]} 66. Ba4 {[%clk 0:00:03]}  Rf8 {[%clk 0:00:06]} 67. Bd1 {[%clk 0:00:04]}  Rf7 {[%clk 0:00:07]} 68. Bxg4 {[%clk 0:00:04]}  Rf8 {[%clk 0:00:06]} 69. Be2 {[%clk 0:00:05]}  Rf7 {[%clk 0:00:05]} 70. g4 {[%clk 0:00:05]}  Rf8 {[%clk 0:00:05]} 71. Kf1 {[%clk 0:00:05]}  Nd7 {[%clk 0:00:05]} 72. Rh5 {[%clk 0:00:03]}  Nf6 {[%clk 0:00:04]} 73. Rh4 {[%clk 0:00:03]}  Rg8 {[%clk 0:00:05]} 74. g5+ {[%clk 0:00:03]}  e4 {[%clk 0:00:04]} 75. gxf6 {[%clk 0:00:04]}  Rf8 {[%clk 0:00:03]} 76. Rf4 {[%clk 0:00:04]}  Rf7 {[%clk 0:00:02]} 77. Bh5 {[%clk 0:00:03]}  Rf8 {[%clk 0:00:03]} 78. f7 {[%clk 0:00:04]}  Ke5 {[%clk 0:00:03]} 79. Rg4 {[%clk 0:00:05]}  Kf5 {[%clk 0:00:02]} 80. Rg8 {[%clk 0:00:05]}  Rxf7 {[%clk 0:00:02]} 81. Bxf7 {[%clk 0:00:05]} 1-0


[Site "https://www.chess.com"]

[Event "Titled Tuesday Blitz April 19 Early 2022"]
[White "Tsyhanchuk, Stanislav"]
[Black "Horobetz, Graham"]
[WhiteFideId "13505130"]
[BlackFideId "2047322"]
[WhiteElo "2078"]
[BlackElo "2611"]
[Result "1-0"]
[Round "01"]
[TimeControl "180+1"]
[Date "2022.04.19"]
[WhiteClock "0:00:23"]
[BlackClock "0:00:16"]

1. d4 {[%clk 0:02:59]}  Nf6 {[%clk 0:02:59]} 2. c4 {[%clk 0:03:00]}  e6 {[%clk 0:02:59]} 3. Nc3 {[%clk 0:03:00]}  Bb4 {[%clk 0:02:59]} 4. Nf3 {[%clk 0:03:01]}  d5 {[%clk 0:02:57]} 5. cxd5 {[%clk 0:02:58]}  exd5 {[%clk 0:02:56]} 6. Bg5 {[%clk 0:02:58]}  h6 {[%clk 0:02:53]} 7. Bh4 {[%clk 0:02:58]}  O-O {[%clk 0:02:50]} 8. e3 {[%clk 0:02:57]}  Bf5 {[%clk 0:02:47]} 9. Qb3 {[%clk 0:02:54]}  Be7 {[%clk 0:02:21]} 10. Qxb7 {[%clk 0:02:45]}  Nbd7 {[%clk 0:02:22]} 11. Qa6 {[%clk 0:02:14]}  Rb8 {[%clk 0:02:14]} 12. Bb5 {[%clk 0:02:13]}  c6 {[%clk 0:01:58]} 13. Bxc6 {[%clk 0:02:02]}  Rb6 {[%clk 0:01:55]} 14. Qa4 {[%clk 0:01:58]}  Rxb2 {[%clk 0:01:52]} 15. O-O {[%clk 0:01:52]}  Nb6 {[%clk 0:01:44]} 16. Qa6 {[%clk 0:01:41]}  Qc7 {[%clk 0:01:21]} 17. Ne5 {[%clk 0:01:29]}  Bd6 {[%clk 0:01:08]} 18. Nb5 {[%clk 0:01:14]}  Qe7 {[%clk 0:00:49]} 19. Bg3 {[%clk 0:01:04]}  Bxe5 {[%clk 0:00:41]} 20. Bxe5 {[%clk 0:01:01]}  Bd3 {[%clk 0:00:41]} 21. Rfd1 {[%clk 0:00:58]}  Bc4 {[%clk 0:00:39]} 22. a4 {[%clk 0:00:44]}  Ng4 {[%clk 0:00:36]} 23. Bg3 {[%clk 0:00:42]}  Nc8 {[%clk 0:00:20]} 24. h3 {[%clk 0:00:37]}  Nxe3 {[%clk 0:00:20]} 25. fxe3 {[%clk 0:00:35]}  Qxe3+ {[%clk 0:00:20]} 26. Kh2 {[%clk 0:00:35]}  Qe2 {[%clk 0:00:20]} 27. Rg1 {[%clk 0:00:32]}  Ne7 {[%clk 0:00:19]} 28. Rae1 {[%clk 0:00:28]}  Qc2 {[%clk 0:00:16]} 29. Rxe7 {[%clk 0:00:25]}  f5 {[%clk 0:00:17]} 30. Be5 {[%clk 0:00:23]}  Rf7 {[%clk 0:00:16]} 31. Qc8+ {[%clk 0:00:23]} 1-0


[Site "https://www.chess.com"]

[Event "Titled Tuesday Blitz April 19 Early 2022"]
[White "Urbina Perez, Juan Antonio"]
[Black "Demchenko, Anton"]
[WhiteFideId "2217368"]
[BlackFideId "4160258"]
[WhiteElo "2192"]
[BlackElo "2539"]
[Result "1-0"]
[Round "01"]
[TimeControl "180+1"]
[Date "2022.04.19"]
[WhiteClock "0:00:22"]
[BlackClock "0:00:08"]

1. e4 {[%clk 0:03:00]}  e5 {[%clk 0:03:00]} 2. Nf3 {[%clk 0:02:58]}  Nc6 {[%clk 0:03:00]} 3. Bb5 {[%clk 0:02:57]}  a6 {[%clk 0:03:00]} 4. Ba4 {[%clk 0:02:57]}  Nge7 {[%clk 0:03:00]} 5. Nc3 {[%clk 0:02:51]}  d6 {[%clk 0:02:59]} 6. O-O {[%clk 0:02:47]}  h6 {[%clk 0:02:58]} 7. d4 {[%clk 0:02:47]}  b5 {[%clk 0:02:58]} 8. d5 {[%clk 0:02:36]}  bxa4 {[%clk 0:02:56]} 9. dxc6 {[%clk 0:02:35]}  Nxc6 {[%clk 0:02:55]} 10. Nxa4 {[%clk 0:02:33]}  Be7 {[%clk 0:02:54]} 11. Nc3 {[%clk 0:02:33]}  O-O {[%clk 0:02:52]} 12. Nd5 {[%clk 0:02:33]}  f5 {[%clk 0:02:38]} 13. Nd2 {[%clk 0:02:30]}  Be6 {[%clk 0:02:26]} 14. Nxe7+ {[%clk 0:02:26]}  Qxe7 {[%clk 0:02:20]} 15. b3 {[%clk 0:02:25]}  Qh4 {[%clk 0:02:16]} 16. f3 {[%clk 0:02:23]}  Rad8 {[%clk 0:02:13]} 17. Bb2 {[%clk 0:02:08]}  fxe4 {[%clk 0:01:48]} 18. Nxe4 {[%clk 0:02:09]}  Ne7 {[%clk 0:01:43]} 19. Qe1 {[%clk 0:02:08]}  Qxe1 {[%clk 0:01:30]} 20. Rfxe1 {[%clk 0:02:09]}  Nd5 {[%clk 0:01:25]} 21. Rad1 {[%clk 0:02:06]}  Nf4 {[%clk 0:01:22]} 22. c4 {[%clk 0:02:01]}  Bf5 {[%clk 0:01:15]} 23. Bc1 {[%clk 0:01:59]}  Ne6 {[%clk 0:01:13]} 24. Nc3 {[%clk 0:01:55]}  Nd4 {[%clk 0:01:06]} 25. Be3 {[%clk 0:01:53]}  c5 {[%clk 0:01:07]} 26. Nd5 {[%clk 0:01:51]}  Rf7 {[%clk 0:00:59]} 27. f4 {[%clk 0:01:44]}  Kh7 {[%clk 0:00:32]} 28. fxe5 {[%clk 0:01:36]}  dxe5 {[%clk 0:00:33]} 29. Bf2 {[%clk 0:01:32]}  Bg4 {[%clk 0:00:13]} 30. Rd2 {[%clk 0:01:28]}  Re8 {[%clk 0:00:08]} 31. h3 {[%clk 0:01:12]}  Bc8 {[%clk 0:00:07]} 32. Bxd4 {[%clk 0:01:09]}  cxd4 {[%clk 0:00:07]} 33. Rxd4 {[%clk 0:01:09]}  Bb7 {[%clk 0:00:06]} 34. Rde4 {[%clk 0:01:06]}  Rf5 {[%clk 0:00:06]} 35. R4e2 {[%clk 0:01:02]}  h5 {[%clk 0:00:05]} 36. Rf2 {[%clk 0:00:58]}  Kg6 {[%clk 0:00:04]} 37. Ne3 {[%clk 0:00:50]}  Rxf2 {[%clk 0:00:04]} 38. Kxf2 {[%clk 0:00:51]}  Rd8 {[%clk 0:00:04]} 39. Rd1 {[%clk 0:00:50]}  Rf8+ {[%clk 0:00:04]} 40. Kg1 {[%clk 0:00:50]}  Rf7 {[%clk 0:00:04]} 41. Rd6+ {[%clk 0:00:49]}  Kg5 {[%clk 0:00:05]} 42. Re6 {[%clk 0:00:38]}  Kf4 {[%clk 0:00:05]} 43. Nd5+ {[%clk 0:00:38]}  Bxd5 {[%clk 0:00:05]} 44. cxd5 {[%clk 0:00:38]}  Rc7 {[%clk 0:00:04]} 45. Kh2 {[%clk 0:00:35]}  Rc2 {[%clk 0:00:04]} 46. Rxa6 {[%clk 0:00:31]}  e4 {[%clk 0:00:03]} 47. Re6 {[%clk 0:00:30]}  Rd2 {[%clk 0:00:03]} 48. d6 {[%clk 0:00:29]}  Rxa2 {[%clk 0:00:04]} 49. d7 {[%clk 0:00:28]}  Rd2 {[%clk 0:00:04]} 50. Re7 {[%clk 0:00:28]}  e3 {[%clk 0:00:05]} 51. b4 {[%clk 0:00:28]}  Kf5 {[%clk 0:00:04]} 52. b5 {[%clk 0:00:26]}  Kf6 {[%clk 0:00:04]} 53. Rxe3 {[%clk 0:00:26]}  Rxd7 {[%clk 0:00:04]} 54. Rb3 {[%clk 0:00:26]}  Rb7 {[%clk 0:00:05]} 55. b6 {[%clk 0:00:26]}  h4 {[%clk 0:00:04]} 56. Rb4 {[%clk 0:00:25]}  g5 {[%clk 0:00:04]} 57. Kg1 {[%clk 0:00:24]}  Ke5 {[%clk 0:00:04]} 58. Kf2 {[%clk 0:00:25]}  Kd6 {[%clk 0:00:04]} 59. Kf3 {[%clk 0:00:25]}  Kc6 {[%clk 0:00:05]} 60. Kg4 {[%clk 0:00:25]}  Kc5 {[%clk 0:00:04]} 61. Rb2 {[%clk 0:00:23]}  Kc6 {[%clk 0:00:04]} 62. Kxg5 {[%clk 0:00:23]}  Rg7+ {[%clk 0:00:05]} 63. Kxh4 {[%clk 0:00:22]}  Kb7 {[%clk 0:00:05]} 64. g4 {[%clk 0:00:23]}  Rh7+ {[%clk 0:00:06]} 65. Kg3 {[%clk 0:00:23]}  Rd7 {[%clk 0:00:07]} 66. h4 {[%clk 0:00:23]}  Rd3+ {[%clk 0:00:07]} 67. Kf4 {[%clk 0:00:23]}  Rd4+ {[%clk 0:00:08]} 68. Kf5 {[%clk 0:00:22]} 1-0


[Site "https://www.chess.com"]

[Event "Titled Tuesday Blitz April 19 Early 2022"]
[White "Vokarev, Sergey"]
[Black "Yanayt, Eugene"]
[WhiteFideId "4119711"]
[BlackFideId "2020165"]
[WhiteElo "2343"]
[BlackElo "2046"]
[Result "1-0"]
[Round "01"]
[TimeControl "180+1"]
[Date "2022.04.19"]
[WhiteClock "0:02:04"]
[BlackClock "0:02:08"]

1. e4 {[%clk 0:02:57]}  c5 {[%clk 0:02:54]} 2. Nf3 {[%clk 0:02:57]}  d6 {[%clk 0:02:54]} 3. d4 {[%clk 0:02:57]}  cxd4 {[%clk 0:02:54]} 4. Qxd4 {[%clk 0:02:58]}  a6 {[%clk 0:02:53]} 5. Be2 {[%clk 0:02:56]}  Nc6 {[%clk 0:02:48]} 6. Qe3 {[%clk 0:02:56]}  g6 {[%clk 0:02:40]} 7. O-O {[%clk 0:02:55]}  Bh6 {[%clk 0:02:39]} 8. Qc3 {[%clk 0:02:54]}  f6 {[%clk 0:02:35]} 9. Nbd2 {[%clk 0:02:47]}  Be6 {[%clk 0:02:29]} 10. Bc4 {[%clk 0:02:46]}  Qd7 {[%clk 0:02:25]} 11. Qb3 {[%clk 0:02:36]}  Bxc4 {[%clk 0:02:24]} 12. Nxc4 {[%clk 0:02:36]}  Bxc1 {[%clk 0:02:21]} 13. Nb6 {[%clk 0:02:31]}  Qd8 {[%clk 0:02:19]} 14. Nxa8 {[%clk 0:02:28]}  Na5 {[%clk 0:02:16]} 15. Qc3 {[%clk 0:02:05]}  Bh6 {[%clk 0:02:16]} 16. Nc7+ {[%clk 0:02:04]}  Kf7 {[%clk 0:02:15]} 17. Qxa5 {[%clk 0:02:04]}  e6 {[%clk 0:02:08]} 1-0


[Site "https://www.chess.com"]